bitfinex/quotes_SOLUSD_20250429
["timestamp","ask_amount","ask_price","bid_price","bid_amount"]
[1745901743930,18.24578291,146.95,146.92,0.03]
[1745901744132,21.43148726,146.98,146.92,18.27578291]
[1745901744435,18.24578291,146.96,146.92,0.03]
[1745901744634,18.24578291,146.94,146.92,0.03]
[1745901745022,6.12536582,146.93,146.92,0.03]
[1745901745747,24.37114873,146.93,146.92,0.03]
[1745901748029,6.12536582,146.93,146.92,0.03]
[1745901748229,24.37114873,146.93,146.92,0.03]
[1745901748829,76.57999505,146.93,146.9,0.03]
[1745901749232,24.37198262,146.91,146.9,0.03]
[1745901751567,6.12494895,146.94,146.9,0.03]
[1745901751846,18.24578291,146.93,146.9,0.03]
[1745901752026,6.12467789,146.95,146.92,18.24578291]
[1745901752241,18.24578291,146.97,146.93,18.24578291]
[1745901753148,18.24578291,146.96,146.92,18.24578291]
[1745901754451,24.37018332,146.96,146.92,18.24578291]
[1745901755853,101.14578291,146.95,146.9,0.03]
[1745901756033,101.14578291,146.94,146.9,0.03]
[1745901756348,18.24578291,146.93,146.9,0.03]
[1745901756527,6.12578273,146.92,146.9,0.03]
[1745901757325,18.24578291,146.91,146.9,0.03]
[1745901757525,6.12578273,146.92,146.9,0.03]
[1745901757956,6.12550516,146.93,146.9,0.03]
[1745901758135,89.02510274,146.94,146.91,18.24578291]
[1745901758955,82.9,146.94,146.92,18.24578291]
[1745901759657,82.9,146.94,146.93,18.24578291]
[1745901760843,82.9,146.94,146.92,18.24578291]
[1745901761151,82.9,146.94,146.93,18.24578291]
[1745901761832,82.9,146.97,146.93,36.49156582]
[1745901762036,82.9,146.97,146.96,18.24578291]
[1745901762256,6.12206559,147.01,146.96,18.24578291]
[1745901762462,82.9,147.0,146.98,18.24578291]
[1745901762755,18.24578291,146.99,146.95,32.24578291]
[1745901763141,6.12328207,146.98,146.95,32.24578291]
[1745901763454,82.9,146.97,146.95,14.0]
[1745901766644,82.9,146.97,146.95,32.24578291]
[1745901768966,89.02378606,146.97,146.95,32.24578291]
[1745901769665,18.64964886,146.95,146.9,0.03]
[1745901769869,18.24578291,146.91,146.9,0.03]
[1745901770572,23.25993079,146.91,146.9,0.03]
[1745901771358,18.24578291,146.91,146.9,0.03]
[1745901771584,24.37198262,146.91,146.9,0.03]
[1745901771878,6.12453215,146.95,146.9,18.27578291]
[1745901772077,24.37031506,146.95,146.91,18.24578291]
[1745901772252,18.24578291,146.94,146.9,18.27578291]
[1745901772975,18.24578291,146.93,146.9,0.03]
[1745901773275,21.43586253,146.95,146.9,18.27578291]
[1745901773648,18.24578291,146.93,146.9,0.03]
[1745901774053,6.12578273,146.92,146.9,0.03]
[1745901775471,24.37156564,146.92,146.9,0.03]
[1745901775968,6.12578273,146.92,146.9,0.03]
[1745901776765,6.12578273,146.92,146.9,18.27578291]
[1745901777157,6.12578273,146.92,146.9,0.03]
[1745901777357,21.43586253,146.95,146.9,18.27578291]
[1745901777550,18.24578291,146.93,146.9,0.03]
[1745901777752,18.24578291,146.92,146.9,0.03]
[1745901779452,24.3719005,146.92,146.9,0.03]
[1745901781961,18.24578291,146.91,146.9,0.03]
[1745901782276,23.27588494,146.91,146.9,0.03]
[1745901783952,29.40208465,146.91,146.9,0.03]
[1745901784647,11.15630174,146.91,146.9,0.03]
[1745901784855,5.03010203,146.91,146.9,18.27578291]
[1745901785164,11.15630174,146.91,146.9,0.03]
[1745901785678,29.40208465,146.91,146.9,0.03]
[1745901786169,44.71758393,146.91,146.79,19.91128291]
[1745901786367,26.47180102,146.91,146.85,18.24578291]
[1745901786583,18.24578291,146.9,146.86,18.24578291]
[1745901786771,5.03010203,146.89,146.85,18.24578291]
[1745901787673,6.12745098,146.88,146.85,18.24578291]
[1745901787980,6.12745098,146.88,146.84,17.74578291]
[1745901788278,24.37323389,146.88,146.84,17.74578291]
[1745901788475,6.12745098,146.88,146.84,17.74578291]
[1745901790167,6.12745098,146.88,146.85,18.24578291]
[1745901791074,82.9,146.87,146.85,18.24578291]
[1745901791871,82.9,146.87,146.86,18.24578291]
[1745901792171,89.02788741,146.87,146.84,18.24578291]
[1745901793686,89.02788741,146.87,146.85,18.24578291]
[1745901794183,82.9,146.87,146.85,18.24578291]
[1745901795776,82.9,146.87,146.86,18.24578291]
[1745901796956,24.37226696,146.91,146.86,18.24578291]
[1745901797160,82.9,146.9,146.85,6.12859865]
[1745901797358,87.92468391,146.9,146.89,18.24578291]
[1745901798686,82.9,146.9,146.89,18.24578291]
[1745901802886,89.02583409,146.92,146.89,18.24578291]
[1745901807777,107.271617,146.92,146.87,14.08]
[1745901807989,107.271617,146.92,146.88,18.24578291]
[1745901808188,5.02961423,146.91,146.88,18.24578291]
[1745901808597,11.15582865,146.91,146.88,18.24578291]
[1745901808894,5.02961423,146.91,146.89,18.24578291]
[1745901809698,89.0259447,146.92,146.89,18.24578291]
[1745901811602,5.03482335,146.91,146.89,18.24578291]
[1745901811901,101.14578291,146.9,146.85,14.08]
[1745901812204,82.9,146.9,146.87,18.24578291]
[1745901812579,82.9,146.9,146.89,18.24578291]
[1745901816193,87.94666327,146.9,146.89,18.24578291]
[1745901817482,5.04666327,146.9,146.89,18.24578291]
[1745901817685,6.12494895,146.94,146.89,18.24578291]
[1745901817888,82.9,146.93,146.9,18.24578291]
[1745901818500,5.04704931,146.92,146.88,20.20728952]
[1745901818705,5.04704931,146.92,146.91,18.24578291]
[1745901819907,82.9,146.93,146.91,18.24578291]
[1745901821505,82.9,146.95,146.91,18.24578291]
[1745901821703,82.9,146.95,146.94,18.24578291]
[1745901821909,89.02403407,146.97,146.94,18.24578291]
[1745901822080,5.04457527,146.96,146.94,18.24578291]
[1745901823007,5.04457527,146.96,146.93,13.94]
[1745901823201,5.04457527,146.96,146.93,32.18578291]
[1745901823407,5.04457527,146.95,146.94,18.24578291]
[1745901825514,5.04457527,146.95,146.94,11.41511567]
[1745901826016,5.04457527,146.95,146.93,13.94]
[1745901826201,5.04457527,146.95,146.94,11.41511567]
[1745901827114,89.02374864,146.97,146.94,11.41511567]
[1745901827618,89.02374864,146.97,146.93,13.94]
[1745901827793,100.43886431,146.97,146.93,13.94]
[1745901828197,5.03891583,146.96,146.93,25.35511567]
[1745901829123,11.1635797,146.95,146.93,25.35511567]
[1745901829494,11.1635797,146.95,146.93,32.2061289]
[1745901829693,11.1635797,146.95,146.93,13.94]
[1745901830095,5.03891583,146.94,146.93,13.94]
[1745901832716,5.03891583,146.94,146.93,32.2061289]
[1745901833413,82.9,146.95,146.93,32.2061289]
[1745901833600,82.9,146.95,146.94,18.2661289]
[1745901835504,87.93761001,146.95,146.94,18.2661289]
[1745901835898,6.3748,146.93,146.84,13.94]
[1745901836112,18.2661289,146.92,146.87,18.2661289]
[1745901836928,5.03761001,146.91,146.88,18.2661289]
[1745901837306,11.1638466,146.91,146.85,6.12840769]
[1745901837626,6.12623659,146.91,146.88,18.2661289]
[1745901838526,6.12578273,146.92,146.88,18.2661289]
[1745901838729,5.03872369,146.9,146.89,13.94]
[1745901838909,5.03872369,146.9,146.89,32.2061289]
[1745901840015,5.03872369,146.93,146.89,32.2061289]
[1745901840217,5.03872369,146.93,146.9,18.2661289]
[1745901840724,5.03872369,146.92,146.9,18.2661289]
[1745901841617,6.12506181,146.94,146.9,18.2661289]
[1745901842628,5.04420599,146.93,146.9,18.2661289]
[1745901843211,5.04420599,146.93,146.92,18.2661289]
[1745901844341,5.04420599,146.93,146.92,36.5322578]
[1745901844643,82.9,146.96,146.92,36.5322578]
[1745901844816,0.063,146.98,146.95,18.2661289]
[1745901845017,0.063,146.98,146.95,32.2061289]
[1745901845815,5.04696294,146.97,146.95,32.2061289]
[1745901847011,5.04696294,146.96,146.95,32.2061289]
[1745901847412,5.04696294,146.96,146.95,13.94]
[1745901848919,11.17107834,146.96,146.95,13.94]
[1745901850236,11.17107834,146.96,146.92,18.2661289]
[1745901850442,11.17107834,146.96,146.92,32.1461289]
[1745901850838,5.04696294,146.95,146.92,32.1461289]
[1745901851142,29.4377767,146.95,146.92,13.88]
[1745901851337,18.2661289,146.94,146.92,13.88]
[1745901851539,24.39081376,146.95,146.92,13.88]
[1745901852719,5.04477245,146.94,146.92,13.88]
[1745901852949,11.16983247,146.94,146.92,13.88]
[1745901853525,29.43596137,146.94,146.92,13.88]
[1745901854127,5.04477245,146.93,146.92,13.88]
[1745901855323,11.17013827,146.93,146.92,13.88]
[1745901858953,5.04477245,146.93,146.92,13.88]
[1745901859168,5.04477245,146.93,146.92,25.30073155]
[1745901859459,5.04477245,146.93,146.92,13.88]
[1745901861335,5.04477245,146.93,146.91,11.42073155]
[1745901862054,5.04477245,146.92,146.91,11.42073155]
[1745901868777,5.04477245,146.92,146.9,13.88]
[1745901869068,5.04477245,146.92,146.91,11.42073155]
[1745901870364,5.04477245,146.92,146.9,13.88]
[1745901870766,5.04477245,146.92,146.9,25.30073155]
[1745901871171,5.04477245,146.91,146.9,25.30073155]
[1745901872443,5.04477245,146.91,146.9,31.42734829]
[1745901872780,89.08557118,147.0,146.91,18.64964886]
[1745901872954,82.963,147.0,146.97,11.42073155]
[1745901875573,11.48373155,146.98,146.9,87.5047]
[1745901875881,11.42073155,146.95,146.91,25.30073155]
[1745901876186,0.063,146.98,146.92,11.42073155]
[1745901876187,82.9,146.96,146.92,11.42073155]
[1745901876372,94.32073155,146.96,146.92,11.42073155]
[1745901877849,100.44526083,146.96,146.92,11.42073155]
[1745901878556,89.02452928,146.96,146.92,11.42073155]
[1745901878864,100.44526083,146.96,146.92,11.42073155]
[1745901879169,89.02452928,146.96,146.92,11.42073155]
[1745901879667,100.44526083,146.96,146.92,11.42073155]
[1745901879872,100.44526083,146.96,146.91,25.30073155]
[1745901881076,100.44504333,146.96,146.91,25.30073155]
[1745901881282,100.44504333,146.96,146.92,11.42073155]
[1745901882090,11.42073155,146.94,146.91,13.88]
[1745901882453,11.42073155,146.95,146.91,13.88]
[1745901883078,17.54545635,146.95,146.91,13.88]
[1745901884059,11.42073155,146.93,146.91,13.88]
[1745901885180,5.04486255,146.92,146.91,13.88]
[1745901885566,11.17064528,146.92,146.91,13.88]
[1745901887660,5.04486255,146.92,146.91,13.88]
[1745901887984,11.17064528,146.92,146.91,13.88]
[1745901888187,22.59137683,146.92,146.87,13.78]
[1745901888376,11.42073155,146.91,146.87,25.20073155]
[1745901888586,16.4655941,146.91,146.87,25.20073155]
[1745901888889,22.59189722,146.91,146.87,25.20073155]
[1745901889098,22.59189722,146.91,146.88,11.42073155]
[1745901889099,11.17116567,146.91,146.88,11.42073155]
[1745901889393,6.12630312,146.91,146.88,11.42073155]
[1745901889985,6.12587895,146.92,146.88,11.42073155]
[1745901890192,6.12587895,146.92,146.89,11.42073155]
[1745901890370,82.9,146.93,146.91,11.42073155]
[1745901892590,82.9,146.93,146.92,11.42073155]
[1745901892894,87.94329921,146.93,146.92,11.42073155]
[1745901893688,5.04329921,146.93,146.92,11.42073155]
[1745901894390,5.04329921,146.93,146.92,25.20073155]
[1745901894886,11.16743013,146.96,146.92,25.20073155]
[1745901895089,11.16743013,146.96,146.93,11.42073155]
[1745901895491,5.04329921,146.95,146.93,11.42073155]
[1745901897068,6.12413092,146.96,146.93,11.42073155]
[1745901899386,6.12377147,146.97,146.94,11.42073155]
[1745901899595,6.12377147,146.97,146.95,11.42073155]
[1745901899801,5.04421339,146.96,146.95,11.42073155]
[1745901900774,5.04421339,146.96,146.92,13.78]
[1745901900975,5.04421339,146.96,146.94,11.42073155]
[1745901901580,11.16846028,146.96,146.92,13.78]
[1745901901792,11.16846028,146.96,146.94,11.42073155]
[1745901902073,6.12424689,146.96,146.94,11.42073155]
[1745901902587,6.12424689,146.96,146.93,11.42073155]
[1745901902996,17.54497844,146.96,146.92,25.20073155]
[1745901903704,11.42073155,146.93,146.88,13.78]
[1745901903997,11.42073155,146.9,146.88,13.78]
[1745901904180,11.42073155,146.91,146.88,13.78]
[1745901904500,11.42073155,146.92,146.88,25.20073155]
[1745901904695,11.42073155,146.92,146.88,13.78]
[1745901904871,16.46378242,146.91,146.88,13.78]
[1745901905292,11.42073155,146.91,146.88,13.78]
[1745901905497,11.42073155,146.9,146.88,13.78]
[1745901905671,6.12703383,146.89,146.88,13.78]
[1745901906497,17.54750142,146.9,146.88,13.78]
[1745901912698,11.42073155,146.89,146.85,0.03]
[1745901912903,11.42073155,146.89,146.85,11.45073155]
[1745901913773,11.42073155,146.87,146.85,0.03]
[1745901914778,17.54887499,146.87,146.85,0.03]
[1745901916403,82.9,146.9,146.86,11.42073155]
[1745901916608,82.9,146.9,146.87,11.42073155]
[1745901916784,100.44750657,146.9,146.86,11.42073155]
[1745901917305,17.54750657,146.9,146.86,11.42073155]
[1745901918199,6.12677502,146.9,146.85,0.03]
[1745901918396,17.54750657,146.9,146.86,11.42073155]
[1745901918597,17.54750657,146.9,146.85,0.03]
[1745901918598,17.54750657,146.9,146.85,6.15859765]
[1745901918807,17.54750657,146.9,146.86,11.42073155]
[1745901919200,7.76736243,146.91,146.87,11.42073155]
[1745901919508,19.18809398,146.91,146.87,11.42073155]
[1745901919705,100.44664451,146.92,146.88,11.42073155]
[1745901920501,5.03826776,146.91,146.88,11.42073155]
[1745901920705,5.03826776,146.91,146.88,25.12073155]
[1745901920998,5.03826776,146.91,146.89,11.42073155]
[1745901921204,5.03826776,146.91,146.9,11.42073155]
[1745901921604,17.546095,146.94,146.9,11.42073155]
[1745901921605,6.12536345,146.94,146.9,11.42073155]
[1745901921909,102.04494072,146.95,146.91,11.42073155]
[1745901922310,5.04090874,146.94,146.91,11.42073155]
[1745901922510,16.46164029,146.94,146.9,11.42073155]
[1745901922993,22.58678245,146.94,146.9,11.42073155]
[1745901923307,17.54587371,146.94,146.9,11.42073155]
[1745901924606,11.42073155,146.92,146.88,25.12073155]
[1745901924991,11.42073155,146.91,146.88,13.7]
[1745901926615,6.12661674,146.9,146.88,13.7]
[1745901926812,11.42073155,146.89,146.85,0.03]
[1745901927193,11.42073155,146.88,146.85,0.03]
[1745901927500,11.42073155,146.87,146.85,0.03]
[1745901927901,21.4431586,146.9,146.85,0.03]
[1745901928119,11.42073155,146.88,146.85,0.03]
[1745901928817,6.12786818,146.87,146.85,0.03]
[1745901931629,17.54829146,146.88,146.85,0.03]
[1745901935027,82.9,146.89,146.85,0.03]
[1745901935028,89.0271539,146.89,146.86,11.42073155]
[1745901935194,82.9,146.89,146.87,11.42073155]
[1745901935818,82.9,146.89,146.88,11.42073155]
[1745901936004,11.42073155,146.92,146.88,11.42073155]
[1745901936005,94.32073155,146.92,146.88,11.42073155]
[1745901936406,11.42073155,146.91,146.87,11.42073155]
[1745901936742,5.03498777,146.9,146.87,11.42073155]
[1745901936947,5.03498777,146.9,146.86,11.42073155]
[1745901936948,22.58243468,146.9,146.86,11.42073155]
[1745901937246,11.42073155,146.87,146.85,13.73]
[1745901937424,11.42073155,146.86,146.85,13.73]
[1745901938140,82.9,146.89,146.85,13.73]
[1745901938330,11.42073155,146.88,146.85,13.73]
[1745901939017,6.12786818,146.87,146.85,13.73]
[1745901940350,17.54859973,146.87,146.85,13.73]
[1745901943335,11.42073155,146.86,146.85,0.03]
[1745901943851,16.46041403,146.86,146.85,0.03]
[1745901945045,110.78114558,146.86,146.85,0.03]
[1745901945247,30.9757631,146.8,146.79,1e-08]
[1745901945635,18.64964886,146.79,146.75,0.9621559]
[1745901945957,11.42073155,146.76,146.75,0.9621559]
[1745901946824,16.46041403,146.76,146.75,0.9621559]
[1745901947028,16.46041403,146.76,146.75,0.4621559]
[1745901947223,21.46507665,146.75,146.68,13.64]
[1745901947450,11.42073155,146.71,146.68,13.64]
[1745901947653,18.32983897,146.72,146.68,13.64]
[1745901947857,18.32983897,146.72,146.68,31.96983897]
[1745901948159,18.32983897,146.71,146.68,13.64]
[1745901948342,18.32983897,146.7,146.68,13.64]
[1745901948839,18.32983897,146.71,146.68,13.64]
[1745901949046,18.32983897,146.74,146.7,18.32983897]
[1745901949560,18.32983897,146.74,146.73,0.03]
[1745901950863,24.46313595,146.74,146.73,0.03]
[1745901951439,18.32983897,146.74,146.73,0.03]
[1745901951632,6.13298511,146.75,146.73,0.03]
[1745901951862,24.46282408,146.75,146.73,0.03]
[1745901953763,18.32983897,146.74,146.73,0.03]
[1745901953975,82.9,146.78,146.73,18.35983897]
[1745901954137,82.9,146.82,146.77,18.32983897]
[1745901954467,18.32983897,146.8,146.75,18.32983897]
[1745901954843,89.03014172,146.82,146.76,18.32983897]
[1745901955160,26.01820372,146.83,146.73,32.31964886]
[1745901955467,18.32983897,146.81,146.77,18.32983897]
[1745901955680,18.32983897,146.78,146.73,13.67]
[1745901955837,18.32983897,146.77,146.73,31.99983897]
[1745901956238,18.32983897,146.76,146.73,13.67]
[1745901956753,18.32983897,146.75,146.73,13.67]
[1745901957152,18.32983897,146.74,146.73,13.67]
[1745901957879,24.46280335,146.75,146.73,13.67]
[1745901958266,18.32983897,146.74,146.73,13.67]
[1745901958787,6.13204333,146.77,146.73,13.67]
[1745901958961,6.13204333,146.77,146.74,18.32983897]
[1745901959160,24.4618823,146.77,146.73,13.67]
[1745901959373,24.4618823,146.77,146.73,31.99983897]
[1745901960060,18.32983897,146.76,146.73,13.67]
[1745901960290,18.32983897,146.74,146.73,13.67]
[1745901960975,18.32983897,146.74,146.73,0.03]
[1745901961980,24.46313595,146.74,146.73,0.03]
[1745901963282,52.13302437,146.74,146.63,0.03]
[1745901963486,18.32983897,146.69,146.64,18.32983897]
[1745901963880,18.32983897,146.69,146.63,0.03]
[1745901964090,24.46561759,146.69,146.64,18.32983897]
[1745901964275,6.13455115,146.71,146.67,18.32983897]
[1745901964792,24.46439012,146.71,146.67,18.32983897]
[1745901964980,24.46439012,146.71,146.66,18.32983897]
[1745901966490,18.32983897,146.7,146.65,13.64]
[1745901966697,18.32983897,146.7,146.66,18.32983897]
[1745901966992,24.46439012,146.71,146.66,18.32983897]
[1745901967585,16.9060433,146.75,146.67,18.32983897]
[1745901967586,24.46401278,146.72,146.67,18.32983897]
[1745901967762,6.13417381,146.72,146.68,18.32983897]
[1745901967983,6.13417381,146.72,146.69,18.32983897]
[1745901968203,6.13417381,146.72,146.65,38.10685992]
[1745901968204,24.46401278,146.72,146.68,18.32983897]
[1745901970864,24.46401278,146.72,146.69,18.32983897]
[1745901970865,6.13417381,146.72,146.69,18.32983897]
[1745901971372,24.46401278,146.72,146.68,18.32983897]
[1745901971570,24.46401278,146.72,146.65,19.77693644]
[1745901971790,24.46401278,146.72,146.68,18.32983897]
[1745901972513,24.46401278,146.72,146.69,18.32983897]
[1745901972681,24.46355395,146.73,146.69,18.32983897]
[1745901972992,107.36325601,146.74,146.69,18.32983897]
[1745901973300,82.9,146.74,146.71,18.32983897]
[1745901974107,90.65451581,146.78,146.73,18.32983897]
[1745901974274,89.03171581,146.78,146.75,18.32983897]
[1745901974602,107.36155478,146.78,146.74,18.32983897]
[1745901975486,107.36155478,146.78,146.74,14.82983897]
[1745901976586,89.03171581,146.78,146.74,14.82983897]
[1745901976788,89.03171581,146.78,146.75,18.32983897]
[1745901977793,107.36155478,146.78,146.74,18.32983897]
[1745901978602,89.03171581,146.78,146.75,18.32983897]
[1745901980607,89.03171581,146.78,146.74,18.32983897]
[1745901981099,6.13171581,146.78,146.75,18.32983897]
[1745901981886,1.6228,146.81,146.76,18.32983897]
[1745901982190,24.45937653,146.83,146.79,18.32983897]
[1745901982393,6.12953756,146.83,146.8,18.32983897]
[1745901983187,24.45937653,146.83,146.79,18.32983897]
[1745901983814,24.45937653,146.83,146.78,18.32983897]
[1745901983982,18.32983897,146.82,146.78,18.32983897]
[1745901984183,18.32983897,146.82,146.77,18.32983897]
[1745901984713,6.12953756,146.83,146.77,18.32983897]
[1745901984888,18.32983897,146.82,146.77,18.32983897]
[1745901985313,18.32983897,146.8,146.76,32.38983897]
[1745901985610,18.32983897,146.79,146.76,14.06]
[1745901985788,18.32983897,146.78,146.76,14.06]
[1745901986932,18.32983897,146.77,146.76,14.06]
[1745901989029,24.4618823,146.77,146.76,14.06]
[1745901990319,29.50032819,146.77,146.76,14.06]
[1745901990729,29.50032819,146.77,146.72,32.38983897]
[1745901990935,18.32983897,146.76,146.72,32.38983897]
[1745901991103,24.46258213,146.76,146.72,32.38983897]
[1745901993222,24.46258213,146.76,146.72,14.06]
[1745901993431,18.32983897,146.74,146.72,14.06]
[1745901994731,82.9,146.76,146.73,18.32983897]
[1745901994936,82.9,146.76,146.74,18.32983897]
[1745901995330,6.13119191,146.8,146.75,18.32983897]
[1745901995535,6.13119191,146.8,146.78,18.32983897]
[1745901995715,5.04040562,146.79,146.78,18.32983897]
[1745901996733,107.36012002,146.82,146.78,18.32983897]
[1745901999933,24.52207355,146.84,146.8,18.32983897]
[1745902000232,6.19223458,146.84,146.8,18.32983897]
[1745902000421,24.52207355,146.84,146.8,18.32983897]
[1745902000741,18.32983897,146.83,146.77,15.5722]
[1745902001042,18.32983897,146.83,146.78,18.32983897]
[1745902001545,18.32983897,146.82,146.78,18.32983897]
[1745902001845,24.45990895,146.82,146.78,18.32983897]
[1745902005935,18.32983897,146.81,146.77,32.38983897]
[1745902007258,18.32983897,146.81,146.78,18.32983897]
[1745902008058,18.32983897,146.82,146.78,18.32983897]
[1745902009869,6.12953756,146.83,146.78,18.32983897]
[1745902010163,24.46000263,146.82,146.78,18.32983897]
[1745902014664,18.32983897,146.82,146.78,18.32983897]
[1745902014848,24.45987702,146.82,146.78,18.32983897]
[1745902015670,17.56884643,146.82,146.78,11.43880838]
[1745902015872,17.56884643,146.82,146.77,14.06]
[1745902016041,17.56884643,146.82,146.78,11.43880838]
[1745902018352,11.43880838,146.81,146.77,25.49880838]
[1745902018538,16.4815353,146.81,146.77,25.49880838]
[1745902019264,6.13079019,146.8,146.77,25.49880838]
[1745902019559,82.9,146.83,146.79,11.43880838]
[1745902019768,6.19228434,146.84,146.8,11.43880838]
[1745902019967,17.63109272,146.84,146.8,11.43880838]
[1745902020150,5.04583958,146.83,146.8,11.43880838]
[1745902020350,5.04583958,146.83,146.77,20.19202172]
[1745902020591,5.04583958,146.83,146.81,11.43880838]
[1745902020752,5.04583958,146.83,146.82,11.43880838]
[1745902021354,0.063,146.84,146.82,11.43880838]
[1745902021566,0.063,146.84,146.83,18.28981146]
[1745902021942,5.10942678,146.84,146.83,18.28981146]
[1745902023567,0.063,146.84,146.83,18.28981146]
[1745902024271,18.35281146,146.84,146.8,13.94]
[1745902024441,18.28981146,146.83,146.8,13.94]
[1745902024641,18.28981146,146.81,146.8,13.94]
[1745902025055,18.28981146,146.81,146.76,32.22981146]
[1745902025256,18.28981146,146.81,146.77,18.28981146]
[1745902025457,107.31949386,146.83,146.78,18.28981146]
[1745902025668,107.31949386,146.83,146.79,18.28981146]
[1745902026167,18.28981146,146.82,146.78,18.28981146]
[1745902026467,5.04728679,146.81,146.78,18.28981146]
[1745902027052,5.04728679,146.81,146.79,18.28981146]
[1745902028171,5.04728679,146.82,146.79,18.28981146]
[1745902028348,5.04728679,146.82,146.78,24.42118033]
[1745902029170,107.31937072,146.83,146.79,18.28981146]
[1745902029769,18.28981146,146.82,146.78,32.22981146]
[1745902029958,18.28981146,146.81,146.78,13.94]
[1745902031171,6.13079019,146.8,146.78,13.94]
[1745902031667,24.42060165,146.8,146.78,13.94]
[1745902032073,119.47962292,146.79,146.73,13.82]
[1745902032377,18.28981146,146.74,146.69,13.82]
[1745902032577,18.28981146,146.71,146.69,13.82]
[1745902032779,18.28981146,146.7,146.69,13.82]
[1745902032991,18.28981146,146.7,146.68,0.03]
[1745902033152,18.28981146,146.69,146.68,0.03]
[1745902033351,24.42519901,146.69,146.68,0.03]
[1745902033961,44.80084293,146.69,146.6,6.5498]
[1745902034168,18.28981146,146.63,146.59,0.03]
[1745902034372,18.28981146,146.62,146.59,0.03]
[1745902034882,109.41103147,146.69,146.6,18.28981146]
[1745902035081,6.13538755,146.69,146.64,18.28981146]
[1745902035384,18.28981146,146.68,146.64,18.28981146]
[1745902035591,1.5283,146.7,146.65,18.28981146]
[1745902035773,18.28981146,146.7,146.66,18.28981146]
[1745902035973,18.28981146,146.72,146.68,18.28981146]
[1745902036272,1.5455,146.74,146.67,18.28981146]
[1745902036273,18.28981146,146.71,146.67,18.28981146]
[1745902036471,18.28981146,146.7,146.66,18.28981146]
[1745902036787,18.28981146,146.71,146.67,18.28981146]
[1745902037188,6.13375244,146.73,146.67,18.28981146]
[1745902037485,18.28981146,146.71,146.67,24.42581043]
[1745902037686,17.04731146,146.71,146.67,24.42581043]
[1745902038063,1.5455,146.74,146.69,18.28981146]
[1745902038264,18.28981146,146.73,146.69,18.28981146]
[1745902038464,19.83531146,146.74,146.69,18.28981146]
[1745902038687,18.28981146,146.73,146.67,6.13599897]
[1745902039009,18.28981146,146.73,146.69,18.28981146]
[1745902039789,1.5455,146.74,146.69,18.28981146]
[1745902039981,24.42237186,146.76,146.72,18.28981146]
[1745902040177,6.13214394,146.77,146.72,18.28981146]
[1745902040376,24.4219554,146.77,146.72,18.28981146]
[1745902040582,18.28981146,146.76,146.72,18.28981146]
[1745902042162,18.28981146,146.77,146.73,18.28981146]
[1745902042384,24.42069893,146.8,146.75,18.28981146]
[1745902042701,18.28981146,146.79,146.75,18.28981146]
[1745902042864,6.13088747,146.8,146.75,18.28981146]
[1745902043061,24.42069893,146.8,146.75,18.28981146]
[1745902043470,18.28981146,146.79,146.75,18.28981146]
[1745902044067,18.28981146,146.8,146.76,18.28981146]
[1745902044392,18.28981146,146.81,146.76,32.10981146]
[1745902044591,18.28981146,146.77,146.7,13.82]
[1745902044882,18.28981146,146.76,146.71,18.28981146]
[1745902045083,18.28981146,146.78,146.73,18.28981146]
[1745902045476,18.28981146,146.77,146.71,6.13455115]
[1745902045676,18.28981146,146.77,146.72,18.28981146]
[1745902046392,18.28981146,146.76,146.72,18.28981146]
[1745902046781,18.28981146,146.76,146.71,18.28981146]
[1745902046989,18.28981146,146.75,146.71,18.28981146]
[1745902047988,6.13329698,146.74,146.71,18.28981146]
[1745902048176,24.42272632,146.75,146.71,18.28981146]
[1745902048671,6.13171679,146.78,146.73,18.28981146]
[1745902048877,18.28981146,146.78,146.73,18.28981146]
[1745902049091,18.28981146,146.77,146.73,18.28981146]
[1745902050987,18.28981146,146.78,146.74,18.28981146]
[1745902052077,18.28981146,146.77,146.73,24.42335057]
[1745902052387,18.28981146,146.77,146.73,18.28981146]
[1745902052887,18.28981146,146.77,146.73,24.42350252]
[1745902053090,18.28981146,146.79,146.75,18.28981146]
[1745902053286,107.32061843,146.8,146.75,18.28981146]
[1745902053969,18.28981146,146.79,146.75,18.28981146]
[1745902054187,24.42117515,146.79,146.75,18.28981146]
[1745902055673,24.42117515,146.79,146.74,32.10981146]
[1745902056385,18.28981146,146.78,146.74,32.10981146]
[1745902056592,18.28981146,146.75,146.7,13.82]
[1745902056772,18.28981146,146.74,146.7,32.10981146]
[1745902057989,24.42328172,146.74,146.7,32.10981146]